fUST/lending_fUST_20240610
["ID","MTS","AMOUNT","RATE_DAILY","PERIOD"]
[328889660,1717962648019,-839.08,0.000257,3]
[328889662,1717962648030,-839.08,0.000257,3]
[328889664,1717962648040,-839.08,0.000257,3]
[328889666,1717962648051,-839.08,0.000257,3]
[328889669,1717962648062,-839.08,0.000257,3]
[328889671,1717962648072,-839.08,0.000257,3]
[328889673,1717962648084,-839.08,0.000257,3]
[328889675,1717962648095,-839.08,0.000257,3]
[328889677,1717962648106,-839.08,0.000257,3]
[328889679,1717962648117,-839.08,0.000257,3]
[328889681,1717962648127,-839.08,0.000257,3]
[328889683,1717962648143,-839.08,0.000257,3]
[328889685,1717962648155,-839.08,0.000257,3]
[328889687,1717962648166,-839.08,0.000257,3]
[328889689,1717962648178,-166.41560337,0.00025744,2]
[328889691,1717962648189,-718.83455346,0.00025752,2]
[328889693,1717962648200,-156.7446282,0.00025752,2]
[328889695,1717962648211,-392.09903939,0.00025753,2]
[328889697,1717962648224,-228.74841549,0.00025753,2]
[328889699,1717962648236,-281.93557881,0.00025753,2]
[328889701,1717962648247,-640.83080628,0.00025753,2]
[328889703,1717962648258,-462.68723667,0.00025762,2]
[328889705,1717962648268,-462.68723667,0.00025782,2]
[328889707,1717962648279,-462.68723667,0.00025802,2]
[328889709,1717962648290,-194.79428726,0.00025832,2]
[328889711,1717962648302,-514.05564112,0.00025836,2]
[328889713,1717962648312,-462.68723667,0.00025943,2]
[328889715,1717962648323,-166.41560337,0.00025994,2]
[328889717,1717962648333,-582.0,0.00026098,2]
[328889719,1717962648344,-151.0,0.00026106,7]
[328889721,1717962648354,-462.68723667,0.00026139,2]
[328889723,1717962648364,-217.358334,0.00026388,2]
[328889725,1717962648374,-582.0,0.00026466,2]
[328889727,1717962648385,-292.0745814,0.00026499,2]
[328889729,1717962648395,-3000.0,0.000265,2]
[328889731,1717962648405,-3000.0,0.0002651,2]
[328889733,1717962648415,-3000.0,0.0002652,2]
[328889735,1717962648426,-514.05564112,0.00026529,2]
[328889737,1717962648436,-3000.0,0.0002653,2]
[328889739,1717962648447,-462.68723667,0.00026539,2]
[328889741,1717962648457,-3000.0,0.0002654,2]
[328889743,1717962648467,-274.392147,0.0002654,2]
[328889745,1717962648477,-274.392147,0.0002654,2]
[328889747,1717962648488,-203.653251,0.0002654,2]
[328889749,1717962648498,-151.0,0.0002654,2]
[328889751,1717962648508,-151.0,0.0002654,2]
[328889753,1717962648519,-151.0,0.0002654,2]
[328889755,1717962648529,-3000.0,0.0002655,2]
[328889757,1717962648539,-514.05564112,0.00026551,2]
[328889759,1717962648550,-3000.0,0.0002656,2]
[328889761,1717962648560,-3000.0,0.0002657,2]
[328889763,1717962648570,-3000.0,0.0002658,2]
[328889765,1717962648580,-1910.93747832,0.00026588,2]
[328889767,1717962648590,-3000.0,0.0002659,2]
[328889769,1717962648601,-296.59160637,0.00026598,2]
[328889771,1717962648611,-200.0,0.00026599,2]
[328889773,1717962648622,-3000.0,0.000266,2]
[328889775,1717962648633,-839.08,0.000266,3]
[328889777,1717962648643,-839.08,0.000266,3]
[328889779,1717962648654,-839.08,0.000266,3]
[328889781,1717962648666,-839.08,0.000266,3]
[328889783,1717962648676,-839.08,0.000266,3]
[328889785,1717962648687,-839.08,0.000266,3]
[328889787,1717962648699,-839.08,0.000266,3]
[328889789,1717962648710,-839.08,0.000266,3]
[328889792,1717962648722,-839.08,0.000266,3]
[328889794,1717962648733,-839.08,0.000266,3]
[328889796,1717962648745,-839.08,0.000266,3]
[328889798,1717962648756,-839.08,0.000266,3]
[328889800,1717962648766,-839.08,0.000266,3]
[328889802,1717962648776,-839.08,0.000266,3]
[328889804,1717962648786,-839.08,0.000266,3]
[328889806,1717962648797,-839.08,0.000266,3]
[328889808,1717962648807,-839.08,0.000266,3]
[328889810,1717962648817,-839.08,0.000266,3]
[328889812,1717962648829,-839.08,0.000266,3]
[328889814,1717962648840,-839.08,0.000266,3]
[328889816,1717962648851,-3000.0,0.0002661,2]
[328889818,1717962648861,-5105.74889926,0.00026619,2]
[328889820,1717962648872,-151.0,0.00026619,2]
[328889822,1717962648881,-276.012576,0.00026619,2]
[328889824,1717962648892,-151.0,0.00026619,2]
[328889826,1717962648902,-3000.0,0.0002662,2]
[328889828,1717962648912,-274.392147,0.0002662,2]
[328889830,1717962648923,-274.392141,0.0002662,2]
[328889832,1717962648933,-3000.0,0.0002663,2]
[328889834,1717962648943,-3000.0,0.0002664,2]
[328889836,1717962648953,-3000.0,0.0002665,2]
[328889838,1717962648964,-3000.0,0.0002666,2]
[328889839,1717962648974,-3000.0,0.0002667,2]
[328889841,1717962648985,-285.62178941,0.00026679,2]
[328889843,1717962648996,-3000.0,0.0002668,2]
[328889845,1717962649007,-3000.0,0.0002669,2]
[328889847,1717962649017,-300.0,0.000267,2]
[328889849,1717962649027,-3000.0,0.000267,2]
[328889851,1717962649038,-3000.0,0.0002671,2]
[328889853,1717962649049,-3000.0,0.0002672,2]
[328889855,1717962649060,-24876.98913809,0.00026728,2]
[328889857,1717962649070,-151.0,0.00026728,2]
[328889859,1717962649080,-151.0,0.00026728,2]
[328889861,1717962649091,-3000.0,0.0002673,2]
[328889863,1717962649102,-3000.0,0.0002674,2]
[328889865,1717962649112,-3000.0,0.0002675,2]
[328889867,1717962649123,-3000.0,0.0002676,2]
[328889869,1717962649134,-3000.0,0.0002677,2]
[328889871,1717962649145,-462.68723667,0.00026778,2]
[328889873,1717962649155,-3000.0,0.0002678,2]
[328889875,1717962649166,-3000.0,0.0002679,2]
[328889878,1717962649176,-3000.0,0.000268,2]
[328889879,1717962649187,-194.79428727,0.00026809,2]
[328889881,1717962649197,-3000.0,0.0002681,2]
[328889884,1717962649209,-3000.0,0.0002682,2]
[328889885,1717962649220,-4231.289905,0.0002683,2]
[328889887,1717962649231,-462.68723667,0.0002683,2]
[328889889,1717962649242,-750.0,0.00026849,2]
[328889891,1717962649253,-156.95036896,0.00026908,2]
[328889893,1717962649264,-155.0,0.00027,2]
[328889895,1717962649274,-300.35922899,0.00027,2]
[328889897,1717962649287,-151.0,0.00027004,7]
[328889899,1717962649298,-514.05564112,0.00027058,2]
[328889901,1717962649309,-582.0,0.00027064,2]
[328889903,1717962649319,-514.05564112,0.00027082,2]
[328889905,1717962649331,-462.68723667,0.00027095,2]
[328889907,1717962649341,-500.0,0.00027397,2]
[328889909,1717962649352,-500.0,0.00027397,2]
[328889912,1717962649363,-500.0,0.00027397,2]
[328889914,1717962649375,-500.0,0.00027397,2]
[328889916,1717962649387,-500.0,0.00027397,2]
[328889917,1717962649399,-509.7393075,0.00027397,2]
[328889919,1717962649410,-500.0,0.00027397,2]
[328889922,1717962649421,-631.92870326,0.00027397,2]
[328889924,1717962649432,-485.11230139,0.00027397,2]
[328889925,1717962649443,-798.87426903,0.00027397,7]
[328889928,1717962649455,-23533.518673,0.00027397,2]
[328889929,1717962649465,-462.68723667,0.00027463,2]
[328889931,1717962649475,-156.95036896,0.00027466,2]
[328889934,1717962649487,-514.05564112,0.00027511,2]
[328889936,1717962649497,-162.15614269,0.00027556,2]
[328889938,1717962649508,-514.05564112,0.00027561,2]
[328889939,1717962649519,-582.0,0.00027616,2]
[328889941,1717962649530,-514.05564112,0.00027672,2]
[328889943,1717962649542,-900.0,0.00027698,7]
[328889945,1717962649553,-900.0,0.00027698,7]
[328889947,1717962649563,-900.0,0.00027698,7]
[328889949,1717962649574,-900.0,0.00027698,7]
[328889951,1717962649586,-900.0,0.00027698,7]
[328889954,1717962649597,-900.0,0.00027698,7]
[328889956,1717962649608,-900.0,0.00027698,7]
[328889957,1717962649620,-900.0,0.00027698,7]
[328889960,1717962649632,-900.0,0.00027698,7]
[328889962,1717962649642,-900.0,0.00027698,7]
[328889963,1717962649653,-900.0,0.00027698,7]
[328889965,1717962649663,-900.0,0.00027698,7]
[328889967,1717962649674,-900.0,0.00027698,7]
[328889970,1717962649684,-900.0,0.00027698,7]
[328889971,1717962649694,-900.0,0.00027698,7]
[328889973,1717962649704,-900.0,0.00027698,7]
[328889975,1717962649715,-600.0,0.00027698,7]
[328889977,1717962649725,-300.0,0.000277,2]
[328889979,1717962649735,-514.05564112,0.00027724,2]
[328889981,1717962649746,-462.68723667,0.00027728,2]
[328889984,1717962649757,-151.78907289,0.00027731,2]
[328889986,1717962649768,-514.05564112,0.00027768,2]
[328889995,1717962649851,-166.666666,0.00027895,2]
[328889997,1717962649873,-151.0,0.00027901,7]
[328889999,1717962649883,-6098.06051785,0.0002799,2]
[328890001,1717962649894,-55999.8756,0.0002799,7]
[328890003,1717962649905,-166.41560337,0.00027991,2]
[328890005,1717962649915,-154.98450155,0.00028,2]
[328890007,1717962649926,-1000.0,0.00028,28]
[328890009,1717962649936,-646.47083962,0.00028,2]
[328890011,1717962649946,-876.8748584,0.00028,2]
[328890013,1717962649956,-155.44999689,0.00028,30]
[328890015,1717962649968,-582.0,0.00028031,2]
[328890017,1717962649979,-166.41560337,0.00028104,2]
[328890019,1717962649989,-462.68723667,0.00028148,2]
[328890021,1717962650000,-462.68723667,0.00028189,2]
[328890023,1717962650011,-462.68723667,0.00028275,2]
[328890025,1717962650021,-166.41560337,0.0002837,2]
[328890027,1717962650032,-462.68723667,0.00028395,2]
[328890029,1717962650043,-462.68723667,0.00028488,2]
[328890031,1717962650055,-514.05564112,0.00028494,2]
[328890033,1717962650066,-514.05564112,0.00028544,2]
[328890035,1717962650076,-1103.37197472,0.00028597,2]
[328890037,1717962650087,-462.68723667,0.000286,2]
[328890039,1717962650098,-393203.94270118,0.00028604,120]
[328890042,1717962650114,-8669.34768305,0.00028604,120]
[328891310,1717962717197,157.71613158,9.999e-05,2]
[328891512,1717963835178,-155.01395126,0.00014999,2]
[328891513,1717963835188,-243.78604874,0.00014999,2]
[328891514,1717963835263,-9344.72233771,0.00014999,2]
[328891515,1717963835274,-286.42661055,0.00015,2]
[328891516,1717963835286,-1302.68548416,0.00015,2]
[328891517,1717963835298,-166.666666,0.00016986,2]
[328891518,1717963835309,-938.60358095,0.00018894,2]
[328891519,1717963835321,-1234.1224539,0.00018895,2]
[328891520,1717963835334,-404.80663816,0.000189,2]
[328891521,1717963835345,-5704.60936512,0.00019371,2]
[328891596,1717963843968,-19195.39063488,0.00019371,2]
[328891598,1717963843979,-746.25216881,0.000199,2]
[328891600,1717963843989,-1455.8319284,0.0002,3]
[328891602,1717963843999,-932.35426985,0.0002,2]
[328891604,1717963844009,-471.08100537,0.00021,2]
[328891606,1717963844020,-393.98121283,0.00021125,2]
[328891608,1717963844030,-746.25216878,0.00021126,2]
[328891610,1717963844040,-500.0,0.00021917,2]
[328891612,1717963844050,-500.0,0.00021917,2]
[328891614,1717963844060,-500.0,0.00021917,3]
[328891616,1717963844070,-4756.2,0.00021917,3]
[328891618,1717963844080,-613.92,0.00021917,2]
[328891620,1717963844090,-166.666666,0.00021918,2]
[328891622,1717963844101,-31887.56672282,0.0002219,2]
[328891624,1717963844110,-500.0,0.00022191,3]
[328891626,1717963844120,-4756.2,0.00022191,3]
[328891628,1717963844130,-746.25216878,0.00022351,2]
[328891630,1717963844140,-166.666666,0.00022431,2]
[328891632,1717963844150,-500.0,0.00022465,3]
[328891634,1717963844160,-4756.2,0.00022465,3]
[328891636,1717963844171,-479.68061974,0.00022738,2]
[328891638,1717963844182,-500.0,0.00022738,2]
[328891640,1717963844192,-548.76308436,0.00022738,2]
[328891642,1717963844202,-500.0,0.00022738,2]
[328891644,1717963844212,-298.11781374,0.00022738,2]
[328891646,1717963844223,-500.0,0.00022738,2]
[328891648,1717963844233,-500.0,0.00022739,3]
[328891650,1717963844244,-4756.2,0.00022739,3]
[328891652,1717963844254,-166.666666,0.00022944,2]
[328891654,1717963844265,-155.01550155,0.00023,2]
[328891656,1717963844276,-207.11489985,0.00023,2]
[328891658,1717963844288,-4756.2,0.00023013,3]
[328891660,1717963844298,-4756.2,0.00023287,3]
[328891662,1717963844309,-160.42,0.000234,3]
[328891664,1717963844319,-160.42,0.000234,3]
[328891666,1717963844332,-160.42,0.000234,3]
[328891668,1717963844342,-160.42,0.000234,3]
[328891670,1717963844353,-166.666666,0.00023456,2]
[328891672,1717963844363,-500.0,0.00023561,3]
[328891674,1717963844373,-4756.2,0.00023561,3]
[328891676,1717963844383,-746.25216878,0.00023577,2]
[328891678,1717963844393,-500.0,0.00023835,3]
[328891680,1717963844404,-4756.2,0.00023835,3]
[328891682,1717963844414,-404.80663816,0.000239,2]
[328891684,1717963844424,-166.666666,0.00023969,2]
[328891686,1717963844435,-452.20925215,0.00024,10]
[328891688,1717963844445,-4756.2,0.00024109,3]
[328891690,1717963844455,-160.42,0.000242,3]
[328891692,1717963844465,-160.42,0.000242,3]
[328891694,1717963844476,-160.42,0.000242,3]
[328891696,1717963844486,-154.22907889,0.00024362,2]
[328891698,1717963844496,-154.21669236,0.00024367,2]
[328891700,1717963844507,-500.0,0.00024383,3]
[328891702,1717963844519,-4756.2,0.00024383,3]
[328891704,1717963844530,-154.21669236,0.00024416,2]
[328891706,1717963844541,-154.21669236,0.00024463,2]
[328891708,1717963844552,-166.666666,0.00024482,2]
[328891710,1717963844563,-166.41560342,0.00024517,2]
[328891712,1717963844573,-500.0,0.00024657,3]
[328891714,1717963844583,-4756.2,0.00024657,3]
[328891716,1717963844595,-200.0,0.00024658,15]
[328891718,1717963844609,-380.0,0.00024658,2]
[328891720,1717963844620,-260.44316467,0.00024658,2]
[328891722,1717963844631,-260.30177294,0.000247,9]
[328891724,1717963844642,-154.21669236,0.00024757,2]
[328891726,1717963844652,-746.25216878,0.00024803,2]
[328891728,1717963844663,-154.22907889,0.00024857,2]
[328891730,1717963844674,-500.0,0.00024931,3]
[328891732,1717963844685,-4756.2,0.00024931,3]
[328891734,1717963844696,-154.21669236,0.00024937,2]
[328891736,1717963844706,-154.22907889,0.00024991,2]
[328891738,1717963844716,-296.75762585,0.00025,2]
[328891740,1717963844726,-160.42,0.00025,3]
[328891742,1717963844738,-160.42,0.00025,3]
[328891744,1717963844748,-160.42,0.00025,3]
[328891746,1717963844759,-500.0,0.00025205,3]
[328891748,1717963844770,-4756.2,0.00025205,3]
[328891750,1717963844780,-151.0,0.00025302,7]
[328891752,1717963844791,-154.21669236,0.00025407,2]
[328891754,1717963844800,-500.0,0.00025479,3]
[328891756,1717963844810,-4756.2,0.00025479,3]
[328891758,1717963844820,-154.22907889,0.00025523,2]
[328891760,1717963844831,-9500.51899678,0.00025741,2]
[328891762,1717963844841,-500.0,0.00025753,3]
[328891764,1717963844852,-4756.2,0.00025753,3]
[328891766,1717963844862,-160.42,0.000258,3]
[328891768,1717963844873,-160.42,0.000258,3]
[328891770,1717963844884,-160.42,0.000258,3]
[328891772,1717963844894,-500.0,0.00026027,3]
[328891774,1717963844905,-4756.2,0.00026027,3]
[328891776,1717963844915,-746.25216878,0.00026029,2]
[328891778,1717963844926,-151.0,0.00026176,7]
[328891780,1717963844936,-154.22907889,0.00026179,2]
[328891782,1717963844947,-154.21669236,0.00026257,2]
[328891784,1717963844958,-500.0,0.00026301,3]
[328891786,1717963844968,-4756.2,0.00026301,3]
[328891788,1717963844978,-154.22907889,0.00026367,2]
[328891790,1717963844989,-153.0,0.000264,12]
[328891792,1717963845001,-154.22907889,0.00026545,2]
[328891794,1717963845012,-154.22907889,0.00026562,2]
[328891797,1717963845023,-500.0,0.00026575,3]
[328891799,1717963845034,-1392.04944739,0.00026575,3]
[328893767,1717964122969,1501.26270931,9.999e-05,2]
[328893768,1717964124111,1155.8409949,9.999e-05,2]
[328893769,1717964128212,838.08942219,9.999e-05,2]
[328893770,1717964163094,1342.97936406,9.999e-05,2]
[328893771,1717964278625,267.45486861,9.999e-05,7]
[328893772,1717964687906,247.13,0.00010959,2]
[328893773,1717964698698,205.94,0.00010959,2]
[328893774,1717964720632,514.88,0.00010959,2]
[328893775,1717964772257,514.86,0.00010959,2]
[328893832,1717965033584,-334.86214888,0.0001603,2]
[328893833,1717965033597,-2473.48495548,0.0001603,2]
[328893834,1717965033609,-2906.26,0.0001603,2]
[328893835,1717965033757,-3038.37937317,0.0001603,2]
[328893851,1717965039683,-1788.2209982,0.0001603,2]
[328893852,1717965039695,-565.11485261,0.00016031,2]
[328893853,1717965039708,-1345.91132754,0.00016031,2]
[328893854,1717965039719,-170.793335,0.00016032,2]
[328893855,1717965039730,-19307.52255734,0.00016873,2]
[328893856,1717965039742,-4496.73868482,0.00016874,2]
[328893857,1717965039756,-55078.47662273,0.00016874,2]
[328893858,1717965039767,-166.666666,0.00016986,2]
[328893859,1717965039778,-24890.0,0.00017288,2]
[328893860,1717965039789,-606.592145,0.000185,2]
[328893861,1717965039800,-938.60358095,0.00018899,2]
[328893862,1717965039811,-553.87631536,0.000189,2]
[328893863,1717965039822,-163.07446836,0.00019,2]
[328893864,1717965039832,-7267.44042319,0.00019177,2]
[328893865,1717965039843,-250.87351337,0.00019178,2]
[328893866,1717965039854,-250.18681008,0.00019178,2]
[328893867,1717965039865,-500.0,0.00019178,2]
[328893868,1717965039876,-500.0,0.00019178,2]
[328893869,1717965039886,-500.0,0.00019178,2]
[328893870,1717965039897,-500.0,0.00019178,2]
[328893871,1717965039908,-500.0,0.00019178,2]
[328893872,1717965039919,-264.33157004,0.00019178,2]
[328893873,1717965039930,-500.0,0.00019178,2]
[328893874,1717965039941,-500.0,0.00019178,2]
[328893875,1717965039952,-160.31054465,0.00019178,2]
[328893876,1717965039963,-217.358334,0.00019178,2]
[328893877,1717965039974,-13014.92431536,0.00019998,2]
[328893899,1717965044270,-24554.78620568,0.00019998,2]
[328893900,1717965044282,-932.35426985,0.0002,2]
[328893901,1717965044292,-281.26811784,0.0002,2]
[328893902,1717965044302,-528.95396737,0.0002008,4]
[328893903,1717965044312,-151.0,0.00020083,5]
[328893904,1717965044323,-151.0,0.00020954,5]
[328893905,1717965044333,-1455.8319284,0.00020999,3]
[328893906,1717965044343,-393.98121283,0.00021505,2]
[328893907,1717965044353,-5064.40411785,0.00021506,2]
[328893908,1717965044364,-151.0,0.00021826,5]
[328893909,1717965044374,-500.0,0.00021917,3]
[328893910,1717965044384,-1329.22,0.00021917,3]
[328893911,1717965044395,-500.0,0.00021917,3]
[328893912,1717965044405,-166.666666,0.00021918,2]
[328893913,1717965044417,-7445.37987737,0.00021999,7]
[328893914,1717965044426,-22048.81250766,0.00022,7]
[328893915,1717965044436,-16684.51805114,0.00022,2]
[328893916,1717965044452,-500.66361552,0.00022,2]
[328893920,1717965044955,-309.87613932,0.00022,2]
[328893946,1717965047710,-282.5,0.00021504,2]
[328893947,1717965047723,-188.58100537,0.00021504,2]
[328893948,1717965047733,-6810.05233284,0.00022,2]
[328893949,1717965076685,155.01085076,9.999e-05,2]
[328893950,1717965107063,317.46618636,9.999e-05,2]
[328893951,1717965108341,927.3752309,9.999e-05,2]
[328893952,1717965116466,200.39532959,9.999e-05,2]
[328893953,1717965118600,156.91288186,9.999e-05,2]
[328893954,1717965118645,155.01085076,9.999e-05,2]
[328893956,1717965128838,530.20911563,9.999e-05,2]
[328893957,1717965129422,303.24901435,9.999e-05,2]
[328893958,1717965130238,524.34925931,9.999e-05,2]
[328893959,1717965134047,156.96482514,9.999e-05,2]
[328893960,1717965135171,384.7176913,9.999e-05,2]
[328893961,1717965135314,155.74857925,0.00014,2]
[328893962,1717965137617,182.0047069,9.999e-05,2]
[328893963,1717965139019,552.39710422,9.999e-05,2]
[328893964,1717965140945,208.36805602,9.999e-05,2]
[328893965,1717965142874,282.4521146,9.999e-05,2]
[328893966,1717965162894,1983.49857414,9.999e-05,2]
[328893967,1717965164967,155.01085076,9.999e-05,2]
[328893968,1717965172351,155.01085076,9.999e-05,2]
[328893974,1717965179871,155.01085076,9.999e-05,2]
[328893978,1717965222482,1281.8802491,9.999e-05,2]
[328894050,1717965291466,157.71613158,9.999e-05,2]
[328894079,1717965502232,155.01395126,9.999e-05,2]
[328894080,1717965550111,155.01395126,9.999e-05,2]
[328894083,1717965733061,157.71613158,9.999e-05,2]
[328894251,1717966233402,-312.02515035,0.00015153,2]
[328894252,1717966233517,-1809.04805007,0.00015153,2]
[328894253,1717966233645,-186.56304223,0.00015154,2]
[328894254,1717966233661,-9588.50838645,0.00015253,2]
[328894255,1717966233673,-21057.28227037,0.00015253,2]
[328894256,1717966233686,-269.24912565,0.00015253,2]
[328894257,1717966233700,-913.496781,0.00015253,2]
[328894280,1717966239293,-9822.72738637,0.00015253,2]
[328894281,1717966239306,-3792.79999999,0.00015253,2]
[328894282,1717966239378,-655.23892612,0.00015253,2]
[328894342,1717966244550,-392.1959995,0.00015253,2]
[328894343,1717966244583,-467.82282743,0.00015253,2]
[328894344,1717966245426,-24075.20136166,0.00015253,2]
[328894345,1717966245440,-18553.98532191,0.00015253,2]
[328894346,1717966245450,-2410.47181677,0.00015254,2]
[328894347,1717966245461,-10541.20747573,0.00015254,2]
[328894348,1717966245471,-380.78381648,0.00015261,2]
[328894349,1717966245482,-155.95984158,0.00015578,2]
[328894350,1717966245493,-160.89576059,0.00015582,2]
[328894351,1717966245504,-190.49958795,0.00016495,2]
[328894352,1717966245514,-616.4291156,0.00016496,2]
[328894353,1717966245525,-275.59426284,0.0001692,2]
[328894354,1717966245535,-380.78381644,0.00016921,2]
[328894355,1717966245546,-166.666666,0.00016986,2]
[328894356,1717966245556,-186.56304219,0.00017063,2]
[328894357,1717966245567,-2764.13862909,0.00018578,2]
[328894358,1717966245577,-606.592145,0.00018579,2]
[328894359,1717966245587,-380.78381644,0.00018581,2]
[328894360,1717966245598,-938.60358095,0.000187,2]
[328894361,1717966245609,-369.25087691,0.000189,2]
[328894362,1717966245621,-186.56304219,0.00018972,2]
[328894363,1717966245632,-163.07446836,0.00019,2]
[328894364,1717966245642,-227.93966755,0.00019,2]
[328894366,1717966246796,-7039.50075564,0.00019,2]
[328894367,1717966246807,-10451.55710867,0.00019175,2]
[328894368,1717966246817,-374.78621774,0.00019178,2]
[328894369,1717966246828,-172.19451839,0.00019178,2]
[328894370,1717966246838,-398.34538975,0.00019178,2]
[328894371,1717966246848,-500.0,0.00019178,2]
[328894372,1717966246858,-500.0,0.00019178,2]
[328894373,1717966246869,-492.60189128,0.00019178,2]
[328894374,1717966246879,-608.34801821,0.00019178,2]
[328894375,1717966246890,-500.0,0.00019178,2]
[328894376,1717966246901,-500.0,0.00019178,2]
[328894377,1717966246911,-500.0,0.00019178,2]
[328894378,1717966246922,-500.0,0.00019178,2]
[328894379,1717966246932,-500.0,0.00019178,2]
[328894380,1717966246943,-500.0,0.00019178,2]
[328894381,1717966246953,-257.29933827,0.00019178,2]
[328894382,1717966246963,-288.11463005,0.00019178,2]
[328894383,1717966246976,-528.95396737,0.0002,4]
[328894384,1717966246986,-1719.70837372,0.0002,2]
[328894385,1717966246998,-9500.51899678,0.0002,2]
[328894386,1717966247008,-155.01550155,0.0002,2]
[328894387,1717966247018,-435.0,0.0002,2]
[328894388,1717966247028,-932.35426985,0.0002,2]
[328894389,1717966247039,-1455.8319284,0.0002,3]
[328894390,1717966247050,-380.78381644,0.0002024,2]
[328894391,1717966247060,-281.26811784,0.00020486,2]
[328894392,1717966247070,-393.98121283,0.00021,2]
[328894393,1717966247080,-471.08100537,0.00021,2]
[328894394,1717966247091,-380.78381644,0.000219,2]
[328894395,1717966247101,-500.0,0.00021917,3]
[328894396,1717966247111,-500.0,0.00021917,2]
[328894397,1717966247121,-500.0,0.00021917,2]
[328894398,1717966247130,-500.0,0.00021917,3]
[328894399,1717966247141,-1336.34,0.00021917,3]
[328894400,1717966247151,-500.0,0.00021917,3]
[328894401,1717966247161,-500.0,0.00021917,3]
[328894402,1717966247171,-500.0,0.00021917,2]
[328894403,1717966247181,-500.0,0.00021917,3]
[328894404,1717966247192,-166.666666,0.00021918,2]
[328894405,1717966247201,-14812.03608864,0.00021996,7]
[328894406,1717966247211,-4940.37732628,0.00021996,7]
[328894407,1717966247221,-106833.1376141,0.00021996,2]
[328894408,1717966247232,-432.16814441,0.00022,2]
[328894409,1717966247244,-13480.46429962,0.00022,2]
[328894410,1717966247255,-124426.14973291,0.00022,2]
[328894411,1717966247264,-31887.56672282,0.00022,2]
[328894412,1717966247274,-517.0,0.00022,2]
[328894413,1717966247284,-500.0,0.00022191,3]
[328894414,1717966247295,-500.0,0.00022191,2]
[328894415,1717966247305,-500.0,0.00022191,3]
[328894416,1717966247316,-1336.34,0.00022191,3]
[328894417,1717966247326,-500.0,0.00022191,3]
[328894418,1717966247337,-500.0,0.00022191,3]
[328894419,1717966247349,-500.0,0.00022191,2]
[328894420,1717966247359,-517.0,0.00022192,2]
[328894421,1717966247370,-88888.0,0.0002223,3]
[328894422,1717966247381,-209364.63822256,0.0002233,3]
[328894423,1717966247392,-926.602132,0.0002233,2]
[328894424,1717966247406,-926.602132,0.0002233,2]
[328894425,1717966247416,-151.0,0.0002233,2]
[328894426,1717966247427,-151.0,0.0002233,2]
[328894427,1717966247438,-151.0,0.0002233,2]
[328894428,1717966247448,-151.0,0.0002233,2]
[328894429,1717966247459,-444.596682,0.0002233,2]
[328894430,1717966247470,-444.596682,0.0002233,2]
[328894431,1717966247481,-173.201211,0.0002233,2]
[328894432,1717966247491,-1000.0,0.0002233,4]
[328894433,1717966247503,-1000.0,0.0002233,4]
[328894434,1717966247514,-1000.0,0.0002233,4]
[328894435,1717966247524,-1000.0,0.0002233,4]
[328894437,1717966247535,-1000.0,0.0002233,4]
[328894439,1717966247545,-1000.0,0.0002233,4]
[328894440,1717966247556,-748.325772,0.0002233,4]
[328894442,1717966247566,-173.201211,0.0002233,2]
[328894443,1717966247577,-365.705848,0.0002233,2]
[328894444,1717966247589,-365.705848,0.0002233,2]
[328894445,1717966247599,-151.0,0.0002233,2]
[328894446,1717966247610,-151.0,0.0002233,2]
[328894447,1717966247620,-151.0,0.0002233,2]
[328894449,1717966247631,-151.0,0.0002233,2]